[Event "Lliga Catalana DH 2023"]
[Site "Catalonia"]
[Date "2023.01.24"]
[Round "2.8"]
[White "Balague Camps, Marc"]
[Black "Serra Pages, Jordi"]
[Result "1/2-1/2"]
[ECO "D36"]
[WhiteElo "2207"]
[BlackElo "2164"]
[Annotator "TA"]
[PlyCount "141"]
[EventDate "2023.01.24"]
[EventType "team-tourn"]
[EventCountry "ESP"]
[SourceTitle "playchess.com"]
[Source "ChessBase"]
[SourceQuality "1"]
[TimeControl "40/5400+30:1800+30"]

{[%evp 17,141,25,19,20,19,19,27,16,74,48,54,13,27,14,4,0,0,4,7,-16,-15,-45,6,-34,0,-47,-31,-65,0,-72,-39,-176,-187,-174,-164,-187,-194,-170,-200,-199,-172,-153,-56,-71,-31,-74,0,0,0,0,12,0,12,0,0,0,0,0,0,0,0,0,0,0,0,0,0,-4,0,-21,-4,-6,0,-147,0,-8,-8,-284,-218,-1677,-1675,-1643,-1568,-1502,-1493,-1493,-1451,-1335,-1295,-29941,-5277,-2617,-2547,-29987,-4814,-4814,-2729,-2175,-1923,-1786,-1731,-1460,-971,-955,-950,-921,-832,-720,-770,-520,0,-550,0,-768,0,0,0,0,0,0,0,0,0,0,0,0]} 1. d4 {[%emt 0:00:19]} Nf6 {[%emt 0:00:10]} 2. c4 {[%emt 0:00:04]} e6 {[%emt 0:01:19]} 3. Nc3 {[%emt 0:00:12]} d5 {[%emt 0:01:51]} 4. cxd5 {[%emt 0:02:22]} exd5 {[%emt 0:00:48]} 5. Bg5 {[%emt 0:00:08]} Be7 {[%emt 0:01:55]} 6. e3 {[%emt 0:01:04]} c6 {[%emt 0:01:43]} 7. Qc2 {[%emt 0:00:55]} Nbd7 {[%emt 0:04:26]} 8. Bd3 {[%emt 0:00:34]} h6 {[%emt 0:04:02]} 9. Bh4 {[%emt 0:00:42]} Nh5 {[%emt 0:03:16]} 10. Bxe7 {[%emt 0:01:47] D36: Queen's Gambit Declined: Exchange Variation: Main line (5 Bg5 c6 6 Qc2).} Qxe7 {[%emt 0:00:07]} 11. Nge2 {[%emt 0:04:11]} Ndf6 {[%emt 0:02:48]} 12. h3 {[%emt 0:03:42] White has an edge.} g5 {[%emt 0:04:02]} (12... g6 $11) 13. O-O-O {[%emt 0:11:16] [#]} Be6 $146 {[%emt 0:04:10]} ({Predecessor:} 13... Bd7 14. g4 Ng7 15. Ng3 O-O-O 16. Rhe1 Qb4 17. a3 Qa5 18. Nf5 Nxf5 19. Bxf5 Qc7 {1-0 Wiese,F (1965)-Manke,K (1803) Mecklenburg VP Landesliga Ost 1920 2019 (2.2)}) 14. Kb1 {[%emt 0:05:05]} (14. g4 $5 Ng7 $8 15. f4 $14) 14... O-O-O {[%emt 0:01:15]} 15. g4 {[%emt 0:18:05]} Ng7 {[%emt 0:00:18]} 16. Ng3 {[%emt 0:00:05]} h5 {[%emt 0:02:35]} 17. f3 {[%emt 0:03:03]} Kb8 {[%emt 0:05:37]} 18. Na4 {[%emt 0:07:23]} Bc8 {[%emt 0:04:40][%cal Rh5g4]} 19. Qd2 {[%emt 0:03:19]} Rde8 {[%emt 0:03:11]} (19... h4 $15 20. Nf1 Nfe8) 20. Rde1 {[%emt 0:04:33]} Qc7 {[%emt 0:08:43]} (20... h4 $5 {[%cal Rh4g3]} 21. Nf1 Qd6 $11) 21. Nf5 {[%emt 0:02:58]} (21. Qf2 $11) 21... Nxf5 $15 {[%emt 0:03:39]} 22. gxf5 {[%emt 0:00:05]} Qg3 {[%emt 0:09:41]} (22... g4 $15 23. e4 gxf3) 23. Rc1 {[%emt 0:16:17]} (23. Reg1 $11 {keeps the balance.} Qh4 24. Nc3) 23... Qd6 {[%emt 0:11:53]} (23... Qxf3 24. Qh2+ Ka8 25. Nb6+ axb6 26. Rc3 $18) 24. Rc5 {[%emt 0:06:19]} (24. Rhg1 $15) 24... g4 $1 $19 {[%emt 0:01:33]} 25. hxg4 {[%emt 0:01:53]} hxg4 {[%emt 0:00:11][%mdl 64] Discovered Attack} 26. Rxh8 {[%emt 0:00:35]} Rxh8 {[%emt 0:00:06]} 27. fxg4 {[%emt 0:00:03]} Nxg4 {[%emt 0:02:18]} 28. Rc1 {[%emt 0:02:31]} Rh2 {[%emt 0:05:56]} 29. Qe1 {[%emt 0:00:18]} Nf2 {[%emt 0:02:23]} (29... Rh3 $17 30. Nc5 Nxe3) 30. Bc2 $1 $15 {[%emt 0:00:08]} Qg3 {[%emt 0:00:32]} 31. Qb4 $1 {[%emt 0:00:38]} Rh1 {[%emt 0:06:32]} (31... Qxe3 $2 32. Qd6+ Ka8 33. Qxh2 $18) (31... Rh8 $17 {[%cal Of2g4]} 32. Qe7 Ng4) 32. Rxh1 $11 {[%emt 0:00:49]} Nxh1 {[%emt 0:00:04]} 33. a3 {[%emt 0:00:05] Qf8 is the strong threat.} b6 {[%emt 0:02:41]} 34. Qe7 {[%emt 0:00:34]} Qc7 {[%emt 0:00:46]} 35. Qf6 {[%emt 0:01:13]} Ng3 {[%emt 0:01:53]} 36. Nc3 {[%emt 0:00:05]} Qd7 {[%emt 0:00:34][%cal Rg3f5]} 37. Ka2 {[%emt 0:00:39]} Kc7 {[%emt 0:00:38][%cal Rg3f5]} 38. Qe5+ {[%emt 0:01:39]} Qd6 {[%emt 0:00:04] White must now prevent ...Qxe5.} 39. Qg7 {[%emt 0:00:04]} Nxf5 {[%emt 0:00:33]} 40. Bxf5 {[%emt 0:00:43]} Bxf5 {[%emt 0:00:05]} 41. Qxf7+ {[%emt 0:30:02][%mdl 4096] Endgame KQB-KQN} Qd7 {[%emt 0:30:42]} 42. Qf8 {[%emt 0:01:05]} Kb7 {[%emt 0:00:13]} 43. Ne2 {[%emt 0:02:01]} Bd3 {[%emt 0:00:23]} 44. Nf4 {[%emt 0:00:00]} Bf5 {[%emt 0:00:42]} 45. Kb3 {[%emt 0:01:21] [#]} (45. Ne2 $11 {remains equal.}) 45... c5 {[%emt 0:01:00]} 46. Kc3 {[%emt 0:00:09] Active counter play!} c4 {[%emt 0:01:09]} 47. Qg8 $2 {[%emt 0:00:29][%mdl 8192]} (47. a4 $11) 47... Be4 $19 {[%emt 0:00:00]} 48. Ne6 $2 {[%emt 0:01:05] [#]} (48. Qg1) 48... Qa4 $1 {[%emt 0:00:41]} 49. Qf7+ {[%emt 0:01:42]} Ka6 {[%emt 0:00:06] ( -> ...Qc2+)} 50. Kd2 {[%emt 0:00:18]} Qc2+ {[%emt 0:00:30]} 51. Ke1 {[%emt 0:00:01]} Qc1+ {[%emt 0:00:49]} 52. Kf2 {[%emt 0:00:11]} Qxb2+ {[%emt 0:00:19]} 53. Ke1 {[%emt 0:00:35]} Qc1+ {[%emt 0:00:18]} (53... c3 $142 54. Nc7+ {[%mdl 64] Discovered Attack} Ka5 55. Nxd5 Qd2+ 56. Kf1 Qg2+ 57. Ke1 Bxd5 58. Qxa7+ Kb5 59. a4+ Kc4 60. Qa6+ Kb3 61. Qb5+ Ka3 62. Qe2 Qg1+ 63. Qf1 Qxf1+ 64. Kxf1 c2 65. Kg1 c1=Q+ 66. Kf2 Qc2+ 67. Kg3 Qe4 68. a5 bxa5 69. Kh3 Qg2+ 70. Kh4 Bf3 71. e4 Qg4#) 54. Kf2 {[%emt 0:00:20]} Qd2+ {[%emt 0:00:06]} 55. Kf1 {[%emt 0:01:31]} Bd3+ {[%emt 0:00:40]} (55... Qg2+ $142 56. Ke1 Bf3 57. Qxf3 Qxf3 58. Nd8 Qxe3+ 59. Kf1 c3 60. Nc6 Kb7 61. Nb4 Qd2 62. a4 a5 63. Nd3 Qxd3+ 64. Kf2 c2 65. Kg2 c1=Q 66. Kh2 Qcd2+ 67. Kh1 Qf1#) 56. Kg1 Qxe3+ {[%emt 0:00:07]} 57. Kh2 {[%emt 0:00:08]} Qe2+ {[%emt 0:01:37]} 58. Kg3 {[%emt 0:00:26]} Qe1+ {[%emt 0:00:09]} 59. Kg4 {[%emt 0:00:55]} Be2+ {[%emt 0:00:41]} 60. Kg5 {[%emt 0:00:46]} Qg3+ {[%emt 0:00:25]} 61. Kh6 {[%emt 0:00:27]} Qh4+ {[%emt 0:00:46]} 62. Kg7 {[%emt 0:00:14]} Qg4+ {[%emt 0:00:19]} 63. Kh6 {[%emt 0:00:33]} Qh4+ {[%emt 0:00:42]} 64. Kg7 {[%emt 0:00:07]} Qg3+ {[%emt 0:00:14]} 65. Kh6 $1 {[%emt 0:00:07]} Bf3 $2 {[%emt 0:00:16]} ({Better is} 65... c3 $19 {...c2 would be deadly.} 66. Qd7 Ka5) 66. Qd7 $11 {[%emt 0:01:36] The position is equal.} Qh2+ {[%emt 0:00:59]} 67. Kg7 {[%emt 0:00:11] aiming for Nc7+.} Qb2 {[%emt 0:00:31]} 68. Qa4+ {[%emt 0:00:22]} Kb7 {[%emt 0:00:10]} 69. Qd7+ {[%emt 0:00:01]} Ka6 {[%emt 0:00:09] Hoping for ...Qb3.} 70. Qa4+ {[%emt 0:00:39]} Kb7 {[%emt 0:00:01]} 71. Qd7+ {[%emt 0:00:14] And White is the lucky defender.   Weighted Error Value: White=0.61/Black=0.69} 1/2-1/2

[Event "Lliga Catalana DH 2023"]
[Site "Catalonia"]
[Date "2023.01.28"]
[Round "2.8"]
[White "Perez Manas, Benjamin"]
[Black "Chalmeta Ugas, Jordi"]
[Result "1-0"]
[ECO "C07"]
[WhiteElo "2192"]
[BlackElo "2158"]
[Annotator "TA"]
[PlyCount "75"]
[EventDate "2023.01.24"]
[EventType "team-tourn"]
[EventCountry "ESP"]
[SourceTitle "playchess.com"]
[Source "ChessBase"]
[SourceQuality "1"]
[TimeControl "40/5400+30:1800+30"]

{[%evp 10,75,28,30,17,27,34,12,25,22,19,8,12,29,25,0,0,0,0,0,27,23,131,138,139,128,239,237,245,233,225,235,258,255,257,257,257,153,150,147,147,143,154,152,154,152,151,147,144,145,154,154,160,159,164,157,166,162,684,659,783,775,1018,1022,1023,950,892,890]} 1. e4 e6 2. d4 d5 3. Nd2 c5 4. Ngf3 cxd4 5. exd5 Qxd5 6. Bc4 Qd7 {C07: French Tarrasch: 3...c5, 4 Ngf3 and 4 exd5 Qxd5.} 7. O-O Nc6 8. Nb3 {[%cal Rb3d4]} a6 {The position is equal.} 9. Nbxd4 Nxd4 10. Nxd4 Qc7 {Prevents Bf4} 11. Bb3 {11.Bd3 is the hot move.} Bd6 12. h3 Ne7 13. c3 O-O 14. Re1 e5 15. Nf3 {[#]} Ng6 $146 {[#]} (15... h6 $11 {remains equal.}) ({Predecessor:} 15... Bf5 16. Be3 Rad8 17. Qe2 Ng6 18. Rad1 h6 19. Qc4 Qe7 20. Bb6 Rc8 21. Qd5 Bb8 {1-0 Patil,P (2226)-Moradiabadi,E (2555) Titled Tuesday intern op 14th April blitz 2020 (1)}) 16. Ng5 $1 $16 {And now Qh5 would win.} h6 17. Qd3 {Nxf7 would be deadly. White is more active.} Kh8 (17... hxg5 $16 18. Qxg6 Re8 19. Qxg5 (19. Bxg5 Be6 $16) 19... Be6) 18. Nxf7+ $18 {[%mdl 64] Deflection} Rxf7 19. Bxf7 (19. Qxg6 $6 Rf6 20. Qe8+ Rf8) 19... Qxf7 20. Qxd6 Be6 21. Re3 Nh4 22. Qxe5 (22. Rxe5 Qg6 $18) 22... Rf8 {[%cal Ba8f8,Bf8f7,Bf7d7,Bd7d5][%mdl 32] [#]} 23. Qg3 (23. Qxe6 $2 {gets mated.} Qxf2+ 24. Kh2 Qxg2#) (23. Re2 $1 $18 Bd5 24. Bxh6 Bxg2 25. Qg3 {[%mdl 64] Deflection} Nf3+ 26. Kxg2 gxh6 27. Re3) 23... Nf5 $16 24. Qf4 {aiming for Re1.} Nxe3 25. Qxf7 (25. fxe3 $6 Qe8 26. Qe4 Qd7 $11) ({Don't play} 25. Qxe3 Rd8 $16) 25... Rxf7 26. Bxe3 {[%mdl 4096] Endgame KRB-KRB} ({But not} 26. fxe3 $6 Rd7 $14) 26... Rd7 27. Bd4 Kg8 28. b3 Kf7 29. Re1 Bd5 30. f3 {[%cal Bf2f3,Bf3f4][%mdl 32]} Bc6 31. Kf2 Rd5 32. g4 Ra5 33. Re2 Bb5 $2 (33... Rd5 34. h4 g6) 34. c4 $18 {White is clearly winning.} Bc6 35. f4 {Inhibits Rg5.} h5 36. Bb6 Ra3 37. Bc5 Ra5 38. Bb4 {Weighted Error Value: White=0.05 (flawless) /Black=0.44} 1-0

[Event "Lliga Catalana DH 2023"]
[Site "Catalonia"]
[Date "2023.01.24"]
[Round "2.9"]
[White "Cuadras Avellana, Jordi"]
[Black "Molina Carretero, Daniel"]
[Result "1/2-1/2"]
[ECO "A18"]
[WhiteElo "2196"]
[BlackElo "2218"]
[Annotator "TA"]
[PlyCount "105"]
[EventDate "2023.01.24"]
[EventType "team-tourn"]
[EventCountry "ESP"]
[SourceTitle "playchess.com"]
[Source "ChessBase"]
[SourceQuality "1"]
[TimeControl "40/5400+30:1800+30"]

{[%evp 10,105,68,63,68,42,29,39,38,33,33,31,32,31,29,13,11,5,11,14,16,0,0,0,0,0,-4,-6,-22,-8,0,-26,-15,-59,0,0,70,69,72,66,72,75,62,68,70,10,29,27,52,45,69,68,71,59,54,56,57,55,58,54,60,54,46,47,47,45,41,35,52,45,91,91,85,90,181,25,25,16,18,16,16,0,0,0,0,0,0,0,0,0,0,0,0,0,0,0,0,0]} 1. c4 {[%emt 0:00:00]} Nf6 {[%emt 0:00:00]} 2. Nc3 {[%emt 0:00:04]} e6 {[%emt 0:00:30]} 3. e4 {[%emt 0:02:11][%cal Be2e4,Be4e5][%mdl 32]} d5 {[%emt 0:00:48]} 4. e5 {[%emt 0:00:46]} Nfd7 {[%emt 0:00:59]} 5. cxd5 {[%emt 0:05:01]} exd5 {[%emt 0:05:56]} 6. d4 {[%emt 0:04:47]} Nc6 {[%emt 0:01:13] A18: English Opening: Flohr-Mikenas System (1 c4 Nf6 2 Nc3 e6 3 e4).} 7. Nf3 {[%emt 0:04:43] White is more active.} ({Reject} 7. Nxd5 Nb6 8. Nxb6 axb6 $11) 7... Nb6 {[%emt 0:00:37] [#]} 8. h3 $146 {[%emt 0:01:43]} ({Predecessor:} 8. Bb5 Be7 9. O-O O-O 10. h3 Bf5 11. Bf4 Nb4 12. a3 a6 13. Be2 Nc6 14. Rc1 {1-0 Damljanovic,B (2504)-Drazic,S (2346) SRB-chT Premier 2021 (10.5)}) 8... Bf5 {[%emt 0:04:13] White is slightly better.} 9. Bd3 {[%emt 0:00:35]} Qd7 {[%emt 0:02:04]} 10. O-O {[%emt 0:04:48]} Be7 {[%emt 0:00:56]} 11. Be3 {[%emt 0:04:01]} O-O {[%emt 0:00:58]} 12. Qb1 {[%emt 0:04:39]} Bxd3 {[%emt 0:03:03]} 13. Qxd3 {[%emt 0:00:09]} f6 {[%emt 0:02:08] Prevents Ng5} 14. Rad1 {[%emt 0:11:58]} Rae8 {[%emt 0:04:42]} 15. Ne2 {[%emt 0:03:54]} Nc4 {[%emt 0:15:59]} 16. Bc1 {[%emt 0:01:03]} Nb4 {[%emt 0:04:03]} 17. Qb1 {[%emt 0:03:45]} fxe5 {[%emt 0:02:05]} 18. Nxe5 {[%emt 0:00:39]} Nxe5 {[%emt 0:02:54]} 19. dxe5 {[%emt 0:02:45]} Bc5 {[%emt 0:00:59]} (19... c5 {simplifies} 20. a3 Nc6 21. Qa2 Nxe5 22. Rxd5 Qe6) 20. Bf4 {[%emt 0:04:02]} (20. a3 $5 {[%cal Ra3b4]} Na6 21. Bf4 $11) 20... Nc6 {[%emt 0:04:28]} 21. Qc2 {[%emt 0:05:26]} Bb6 {[%emt 0:00:50]} (21... b6 $15) 22. Qb3 $11 {[%emt 0:01:09]} Nxe5 {[%emt 0:03:07]} (22... Nd4 $11 23. Nxd4 Rxf4) 23. Rxd5 $14 {[%emt 0:01:13]} Qf7 {[%emt 0:04:17]} 24. Rxe5 {[%emt 0:05:22]} Qxb3 {[%emt 0:01:16]} 25. axb3 {[%emt 0:00:02] Hoping for Rxe8.} Rxe5 {[%emt 0:00:14]} 26. Bxe5 {[%emt 0:00:08] And now Nd4 would win.} Re8 {[%emt 0:00:09] [#]} 27. Bxc7 {[%emt 0:01:26]} Bxc7 {[%emt 0:02:34][%mdl 4096] Endgame KRB-KRN} (27... Rxe2 28. Bxb6) 28. Nc3 {[%emt 0:00:48]} Re6 {[%emt 0:18:41]} 29. Rd1 {[%emt 0:08:23]} Kf8 {[%emt 0:00:10]} 30. Kf1 {[%emt 0:00:32]} Be5 {[%emt 0:02:47]} 31. Rd5 {[%emt 0:02:58]} Ke7 {[%emt 0:04:49]} 32. Rb5 {[%emt 0:01:31]} b6 {[%emt 0:00:10]} 33. Rd5 {[%emt 0:00:07]} Bf6 {[%emt 0:00:26]} 34. Rd3 {[%emt 0:01:32]} Re5 {[%emt 0:04:22]} 35. Nd5+ {[%emt 0:03:15]} Ke6 {[%emt 0:00:07]} 36. Nxf6 {[%emt 0:01:00]} Kxf6 {[%emt 0:01:12] KR-KR} 37. Rf3+ {[%emt 0:00:17]} Kg6 $1 {[%emt 0:00:46]} 38. Re3 {[%emt 0:02:39]} Rc5 {[%emt 0:00:17]} 39. Rc3 {[%emt 0:00:15] Strongly threatening Rxc5.} Re5 {[%emt 0:00:12]} (39... Ra5 $14) 40. Rc6+ $16 {[%emt 0:00:19]} Kf5 {[%emt 0:01:02]} 41. Rc7 {[%emt 0:33:11][%csl LRa7,LRg7]} Rb5 {[%emt 0:30:44]} (41... Kf6 $16 {was necessary.}) 42. Rc3 $2 {[%emt 0:00:53]} ({Much less strong is} 42. Rxa7 Rxb3 43. Rxg7 h5) (42. Rxg7 $18 Rxb3 43. Rxa7 (43. Rxh7 a5 $16)) 42... h5 {[%emt 0:01:30]} 43. g3 {[%emt 0:01:58]} a5 {[%emt 0:00:34] The position is equal.} 44. Ke2 {[%emt 0:00:14]} g5 {[%emt 0:04:01]} 45. f3 {[%emt 0:02:52]} h4 {[%emt 0:00:00]} 46. gxh4 {[%emt 0:00:54]} gxh4 {[%emt 0:00:00]} 47. Ke3 {[%emt 0:00:05]} Re5+ {[%emt 0:00:00]} 48. Kf2 {[%emt 0:00:22]} Rb5 {[%emt 0:00:09]} 49. Rd3 {[%emt 0:01:16]} Rc5 {[%emt 0:00:31]} 50. Rc3 {[%emt 0:01:39] Rxc5+ is the strong threat.} Rb5 {[%emt 0:00:20]} 51. Rd3 {[%emt 0:00:50]} Rc5 {[%emt 0:00:11]} 52. Ke3 {[%emt 0:00:55]} Re5+ {[%emt 0:00:09]} 53. Kf2 {[%emt 0:00:43] Weighted Error Value: White=0.13 (very precise) /Black=0.10 (very precise)} 1/2-1/2

[Event "Lliga Catalana DH 2023"]
[Site "Catalonia"]
[Date "2023.01.28"]
[Round "2.9"]
[White "Moya Nunez, Pau Salvador"]
[Black "Obon Temprano, Sergi"]
[Result "0-1"]
[ECO "C45"]
[WhiteElo "2153"]
[BlackElo "2193"]
[Annotator "TA"]
[PlyCount "108"]
[EventDate "2023.01.24"]
[EventType "team-tourn"]
[EventCountry "ESP"]
[SourceTitle "playchess.com"]
[Source "ChessBase"]
[SourceQuality "1"]
[TimeControl "40/5400+30:1800+30"]

{[%evp 16,108,23,-13,46,43,53,-40,-54,-102,-96,-105,-98,-132,-150,-141,-135,-150,-156,-149,-169,-218,-171,-190,-188,-385,-366,-594,-560,-547,-530,-500,-307,-274,-180,-174,-75,-85,-56,-161,8,8,8,-20,0,0,0,0,0,0,0,0,0,0,0,0,0,0,0,0,0,0,0,0,0,-15,-15,-15,-15,-29,-30,-41,-13,-20,-20,-20,-20,-20,-20,-20,-20,-20,-20,-27,-20,-52,-54,-1633,-1619,-29963,-29966,-12504,-6772,-29982,-29981]} 1. e4 e5 2. Nf3 Nc6 3. d4 exd4 4. Nxd4 Bc5 5. Be3 Qf6 6. c3 Nge7 7. Bc4 Ne5 8. Be2 d5 9. f4 (9. O-O $5 {[%cal Rd4b5]} O-O 10. Nd2 $11) 9... Qh4+ {C45: Scotch Game.} (9... Ng4 $11 10. Bxg4 Qh4+ 11. Bf2 Qxg4 12. Qxg4 Bxg4) 10. g3 $14 Qh6 11. Qd2 {[#]} (11. fxe5 $2 Qxe3 12. Nd2 Bh3 13. exd5 O-O-O $17) (11. Nb5 $14 Bxe3 12. Nxc7+ (12. fxe5 $2 Qb6 $19) 12... Kf8 13. Nxa8) 11... Ng4 $146 {Black is slightly better.} ({Predecessor:} 11... Nc4 12. Bxc4 dxc4 13. Qe2 Qb6 14. O-O Nc6 15. Rd1 O-O 16. Na3 Bxa3 17. bxa3 Re8 18. Qxc4 {1-0 Van den Dikkenberg,E (2195)-Swinkels,J (2046) Dieren op 2005 (5)}) 12. Bxg4 (12. e5 $15 {is more appropriate.}) 12... Bxg4 $17 13. e5 O-O-O {White is weak on the light squares} 14. b4 Bxd4 15. Bxd4 Qa6 16. Kf2 h5 {...h4 is the strong threat.} 17. h4 f6 {Black is more active.} 18. exf6 (18. a4 {keeps fighting.}) 18... gxf6 19. a4 Nf5 {...Rde8 would be deadly.} 20. b5 $2 (20. Na3) 20... Qd6 $19 (20... Qe6 21. Re1 Qd6 22. Kg2 $17) 21. Na3 $2 (21. Qd3 {was called for.} Rhe8 22. Nd2) 21... Rde8 22. Rhe1 {Against Re2+} Rxe1 23. Qxe1 {[#]} Nxh4 $1 {[%mdl 576] Strongly threatening ...Nf5. Deflection} 24. Nc2 (24. gxh4 Qxf4+ 25. Kg1 Bh3 26. Bxf6 Qg4+ 27. Kf2 Qg2+ 28. Ke3 Re8+) 24... Nf5 {White must now prevent ...h4.} 25. Ne3 Nxe3 (25... Nxd4 $19 26. cxd4 Bd7) 26. Qxe3 $17 Bd7 {Threatens to win with ...h4.} (26... a5 {feels hotter.} 27. Bc5 Qd7 28. Qe7 Re8) 27. Bc5 {[#]} ({White should try} 27. Re1 $1 $15) 27... Qe6 $2 (27... d4 $1 $19 {[%cal Rd4e3]} 28. Qe7 (28. cxd4 Qd5 $17) (28. Qxd4 $2 {is the wrong capture.} Qe6 $19) 28... Qd5 29. Qxf6 Rg8 30. Qxd4 (30. Bxa7 $2 Bh3 $19) 30... Qf5) 28. Qxe6 $11 Bxe6 {[%mdl 4096] Endgame KRB-KRB} 29. Re1 Kd7 30. Bxa7 b6 31. a5 bxa5 32. Ra1 h4 33. gxh4 Rxh4 34. Be3 Rh2+ 35. Kf3 Rh3+ 36. Kf2 Bg4 37. Bd4 Rf3+ 38. Kg2 Rxf4 39. Kg3 Re4 40. Bxf6 a4 {Hoping for ...Be2.} 41. Bd4 $1 Be2 42. Rxa4 (42. b6 {looks sharper.} Kc8 43. bxc7 Bb5 44. Rb1) 42... Bxb5 43. Ra5 c6 44. Kf3 Kd6 45. Ra8 Re1 46. Rd8+ Kc7 47. Rh8 Re6 48. Rh7+ Kd6 49. Rb7 Re4 50. Rf7 c5 {[%cal Bc6c5,Bc5d4,Bd4c3][%mdl 32]} 51. Rf6+ $2 {[%mdl 8192] White does not recover from this.} (51. Be3 $15) 51... Ke7 $19 52. Rf5 Be2+ ({Inferior is} 52... cxd4 53. Rxd5 Re3+ 54. Kf4 $15) 53. Kf2 cxd4 54. Rxd5 dxc3 {Weighted Error Value: White=0.56/Black=0.29 (precise)} 0-1

[Event "Lliga Catalana DH 2023"]
[Site "Catalonia"]
[Date "2023.01.28"]
[Round "2.10"]
[White "Martinez Ramirez, Erik"]
[Black "Llaneza Vega, Patricia"]
[Result "1-0"]
[ECO "B62"]
[WhiteElo "2186"]
[BlackElo "2130"]
[Annotator "TA"]
[PlyCount "93"]
[EventDate "2023.01.24"]
[EventType "team-tourn"]
[EventCountry "ESP"]
[SourceTitle "playchess.com"]
[Source "ChessBase"]
[SourceQuality "1"]
[TimeControl "40/5400+30:1800+30"]

{[%evp 15,93,28,38,33,49,8,6,0,0,0,0,0,15,-29,-20,-25,-20,-19,79,79,79,44,44,44,44,0,44,44,44,44,68,39,60,60,60,18,82,85,84,87,102,98,96,77,326,317,315,318,826,544,662,655,636,603,547,357,503,330,285,221,314,300,484,296,495,480,491,487,439,383,328,310,410,322,929,910,833,801,5402,4640]} 1. e4 c5 2. Nf3 d6 3. d4 cxd4 4. Nxd4 Nf6 5. Nc3 Nc6 6. Bg5 e6 7. Qd3 Be7 8. O-O-O O-O 9. h4 $1 {[%mdl 4] is now more promising than 9.f4. B62: Sicilian: Richter-Rauzer: 6...e6: Unusual White 7th moves.} Bd7 10. f4 Nxd4 11. Qxd4 {The position is equal.} Bc6 {[#]} 12. Kb1 $146 ({Predecessor:} 12. f5 exf5 13. exf5 Qa5 14. Re1 Rfe8 15. Bd3 Qc5 16. Qxc5 dxc5 17. Bb5 Bxb5 18. Nxb5 {½-½ Dann,M (2303)-Dranov,A (2447) BL2-West 0910 2009 (6.2)}) 12... Re8 13. Be2 Qb6 14. Bxf6 Bxf6 15. Qxb6 axb6 16. Nb5 Bxb5 (16... Red8 $1 $11) 17. Bxb5 $16 Red8 18. c4 h5 19. Rd3 Kf8 20. Rhd1 g6 21. g3 Be7 22. Rf1 {Black is weak on the light squares} f5 23. Re1 Kf7 24. exf5 exf5 25. c5 dxc5 (25... bxc5 $11 {remains equal.} 26. Bc4+ Kf8) 26. Bc4+ Kf8 {[#]} 27. Rde3 $1 $36 {[%mdl 2048] Black is under strong pressure. White is more active.} Bf6 28. Re6 {[%csl LRb6,LRf6]} Kg7 29. Rxb6 {Black must now prevent Ree6.} Rd7 $2 {Loses the game.} (29... Ra4 $16 {is a better defense.} 30. Rxb7+ Kh6) 30. Ree6 $18 Rf8 31. Kc2 Re7 $2 (31... Rd4) 32. Red6 Rc7 33. a4 Re7 34. b3 Rc7 35. Re6 Rd7 (35... Rcf7 {keeps fighting.} 36. Bd5 Rd7) 36. Bb5 Rc7 37. Bd3 Rd7 (37... Rcf7 $142 38. Bc4 Rd8) 38. Bc4 Rc7 $2 (38... Rdf7 39. Bd5 Rd7) 39. Bd5 Rff7 $2 (39... Rd7) 40. Red6 Rf8 41. Bxb7 c4 42. Bd5 cxb3+ 43. Kxb3 Rc3+ 44. Kb4 Rxg3 $2 (44... Rcc8 45. Rb7+ Kh6) 45. Rd7+ {White is clearly winning.} Kh6 46. Rbb7 {[%csl Gb7][%cal Rd7h7]} Rh8 {[#] Prevents Rh7+} 47. Bg8 $1 {[%mdl 576] Deflection.   Weighted Error Value: White=0.40/Black=0.53} 1-0